bitfinex/quotes_SOLUSD_20241031
["timestamp","ask_amount","ask_price","bid_price","bid_amount"]
[1730387436575,3.45192162,171.4,171.36,21.42509824]
[1730387436875,33.53999824,171.41,171.35,27.26079824]
[1730387437077,24.87683795,171.4,171.35,27.26079824]
[1730387437274,21.42509824,171.4,171.35,27.26079824]
[1730387437577,27.70599824,171.41,171.35,41.85079824]
[1730387437776,3.45289868,171.4,171.36,21.42509824]
[1730387437987,21.42509824,171.43,171.38,21.42509824]
[1730387438166,21.42509824,171.4,171.35,41.85079824]
[1730387438369,21.42509824,171.39,171.35,14.59]
[1730387438589,21.42509824,171.37,171.32,21.42509824]
[1730387438884,9.01478594,171.43,171.33,21.42509824]
[1730387439083,21.42509824,171.38,171.33,21.42509824]
[1730387439771,21.42509824,171.38,171.33,27.26149824]
[1730387439981,21.42509824,171.38,171.31,14.5926]
[1730387439982,21.42509824,171.37,171.31,36.01769824]
[1730387440196,21.42509824,171.35,171.3,27.26259824]
[1730387441113,21.42509824,171.34,171.29,27.26299824]
[1730387441399,21.42509824,171.36,171.31,21.42509824]
[1730387441593,21.42509824,171.37,171.32,21.42509824]
[1730387441771,21.42509824,171.36,171.31,21.42509824]
[1730387441970,21.42509824,171.37,171.31,21.42509824]
[1730387443490,27.26059824,171.37,171.31,27.26219824]
[1730387443705,27.26059824,171.37,171.25,6.7469]
[1730387443706,21.42509824,171.34,171.29,21.42509824]
[1730387443874,15.3782,171.35,171.24,21.42509824]
[1730387443875,21.42509824,171.3,171.24,21.42509824]
[1730387444184,21.42509824,171.28,171.23,41.86529824]
[1730387444899,21.42509824,171.31,171.25,21.42509824]
[1730387445407,21.42509824,171.3,171.25,21.42509824]
[1730387445696,21.42509824,171.3,171.24,21.42509824]
[1730387445992,21.42509824,171.3,171.25,21.42509824]
[1730387446491,21.42509824,171.3,171.25,27.26429824]
[1730387447394,27.26289824,171.3,171.25,27.26429824]
[1730387447891,21.42509824,171.29,171.25,5.8392]
[1730387448605,21.42509824,171.29,171.23,21.42509824]
[1730387449112,21.42509824,171.28,171.23,21.42509824]
[1730387449683,21.42509824,171.29,171.23,21.42509824]
[1730387450393,21.42509824,171.29,171.24,20.439]
[1730387450600,21.42509824,171.29,171.24,41.86409824]
[1730387451510,21.42509824,171.26,171.2,21.42509824]
[1730387451717,21.42509824,171.26,171.21,21.42509824]
[1730387453115,27.26419824,171.26,171.21,27.26569824]
[1730387456416,27.26419824,171.26,171.21,41.86759824]
[1730387457222,21.42509824,171.28,171.23,21.42509824]
[1730387457415,21.42509824,171.29,171.24,21.42509824]
[1730387458316,27.26309824,171.29,171.24,27.26449824]
[1730387459748,21.42509824,171.28,171.23,21.42509824]
[1730387460442,21.42509824,171.27,171.22,21.42509824]
[1730387460935,21.42509824,171.25,171.2,41.86899824]
[1730387461111,5.838,171.29,171.2,14.6028]
[1730387461112,21.42509824,171.24,171.2,14.6028]
[1730387461312,21.42509824,171.23,171.2,14.6028]
[1730387462808,21.42509824,171.23,171.18,21.42509824]
[1730387463323,21.42509824,171.23,171.19,21.42509824]
[1730387463535,27.26479824,171.24,171.19,21.42509824]
[1730387463834,21.44886186,171.24,171.19,21.44886186]
[1730387464026,21.44886186,171.23,171.18,21.44886186]
[1730387464629,21.44886186,171.22,171.18,21.44886186]
[1730387464819,21.44886186,171.22,171.18,20.4455]
[1730387465221,21.44886186,171.2,171.15,36.05546186]
[1730387465434,21.44886186,171.19,171.15,14.6066]
[1730387466335,21.44886186,171.16,171.12,14.6094]
[1730387466543,13.41774993,171.16,171.12,20.4532]
[1730387466721,13.41774993,171.15,171.1,13.41774993]
[1730387468341,13.41774993,171.14,171.1,5.8442]
[1730387468637,20.4426,171.21,171.06,21.47226673]
[1730387468638,21.47226673,171.11,171.06,21.47226673]
[1730387468848,21.47226673,171.11,171.07,14.6138]
[1730387469051,21.47226673,171.1,171.05,5.8462]
[1730387469216,23.776884,171.17,171.05,20.4618]
[1730387469543,23.776884,171.17,171.09,21.47226673]
[1730387469544,20.0,171.17,171.09,21.47226673]
[1730387469753,20.0,171.17,171.05,49.693]
[1730387469754,21.47226673,171.13,171.08,21.47226673]
[1730387470323,21.47226673,171.13,171.09,5.8448]
[1730387470537,21.47226673,171.11,171.08,14.6129]
[1730387470743,21.47226673,171.11,171.05,21.47226673]
[1730387471049,21.47226673,171.07,171.04,21.101351]
[1730387471956,21.47226673,171.05,171.04,0.639351]
[1730387473431,21.47226673,171.05,170.99,21.47226673]
[1730387473660,21.47226673,171.03,170.98,21.47226673]
[1730387474036,21.47226673,171.06,171.01,21.47226673]
[1730387474354,21.47226673,171.04,170.99,21.47226673]
[1730387474539,21.47226673,171.04,171.0,5.8479]
[1730387475632,21.47226673,171.03,170.99,14.62]
[1730387475858,21.47226673,171.03,170.99,20.4682]
[1730387476358,21.47226673,171.01,170.97,5.8488]
[1730387477660,21.47226673,171.01,170.97,20.4712]
[1730387478158,21.47226673,171.02,170.97,41.94346673]
[1730387478554,21.47226673,171.07,171.01,21.47226673]
[1730387478755,21.47226673,171.07,171.02,21.47226673]
[1730387479438,22.2583,171.09,171.05,21.47226673]
[1730387479642,22.2583,171.09,171.05,27.31836673]
[1730387480349,22.2583,171.09,171.05,41.93396673]
[1730387480544,4.3059503,171.08,171.05,41.93396673]
[1730387480850,22.2583,171.09,171.05,41.93396673]
[1730387481037,4.30592868,171.08,171.05,41.93396673]
[1730387481232,23.41453039,171.16,171.07,21.47226673]
[1730387481233,28.13546673,171.13,171.07,21.47226673]
[1730387481453,25.78132717,171.12,171.07,21.47633368]
[1730387481648,21.47633368,171.11,171.06,27.32203368]
[1730387482297,27.32043368,171.12,171.07,21.47633368]
[1730387482464,28.13953368,171.13,171.08,21.47633368]
[1730387483139,6.6632,171.13,171.08,21.47633368]
[1730387483335,15.1123,171.14,171.09,21.47633368]
[1730387483540,15.1123,171.14,171.06,20.4604]
[1730387483846,36.58863368,171.14,171.09,21.47633368]
[1730387484442,15.1123,171.14,171.09,21.47633368]
[1730387484842,36.58863368,171.14,171.1,5.8445]
[1730387485368,36.58863368,171.14,171.1,20.4558]
[1730387485540,21.47633368,171.13,171.1,14.6113]
[1730387485953,21.47633368,171.12,171.07,21.47633368]
[1730387486477,36.58863368,171.14,171.09,21.47633368]
[1730387486859,36.58863368,171.14,171.09,27.32083368]
[1730387487171,36.58863368,171.14,171.09,41.93293368]
[1730387487377,15.1123,171.14,171.09,41.93293368]
[1730387488571,36.58863368,171.14,171.09,20.4566]
[1730387489488,42.43173368,171.14,171.09,20.4566]
[1730387490174,42.43173368,171.14,171.09,41.93293368]
[1730387490380,21.47633368,171.13,171.09,20.4566]
[1730387490551,34.37739137,171.14,171.09,13.42199137]
[1730387491352,28.53429137,171.14,171.09,13.42199137]
[1730387491560,13.42199137,171.1,171.04,13.42199137]
[1730387491780,13.42199137,171.08,171.03,33.88619137]
[1730387492086,13.42199137,171.09,171.03,33.88619137]
[1730387492684,13.42199137,171.07,171.03,20.4642]
[1730387492854,13.42199137,171.07,171.03,14.6173]
[1730387493181,13.42199137,171.05,171.01,5.8475]
[1730387493386,13.42199137,171.05,170.97,29.2438]
[1730387493387,13.42199137,171.02,170.97,13.42199137]
[1730387493556,13.42199137,171.01,170.96,13.42199137]
[1730387494357,13.42199137,171.0,170.95,13.42199137]
[1730387494563,21.50906569,170.99,170.94,21.50906569]
[1730387494960,21.50906569,171.0,170.95,21.50906569]
[1730387495583,21.50906569,171.01,170.96,27.35836569]
[1730387495884,21.50906569,171.03,170.98,21.50906569]
[1730387496058,36.82956569,171.04,170.99,21.50906569]
[1730387496563,21.50906569,171.03,170.98,21.50906569]
[1730387497482,21.50906569,171.03,170.98,27.35756569]
[1730387498584,21.50906569,171.0,170.94,27.35866569]
[1730387498888,21.50906569,170.95,170.89,21.50906569]
[1730387499189,43.776884,170.98,170.88,27.36106569]
[1730387499489,43.776884,170.98,170.88,5.852]
[1730387499690,3.45715231,170.97,170.88,5.852]
[1730387499884,43.776884,170.98,170.88,5.852]
[1730387500393,21.50906569,170.96,170.91,21.50906569]
[1730387501179,21.50906569,170.95,170.9,21.50906569]
[1730387502193,21.50906569,170.97,170.92,21.50906569]
[1730387502363,21.50906569,170.97,170.91,36.13656569]
[1730387502684,6.3447,170.99,170.91,14.6275]
[1730387502685,21.50906569,170.96,170.91,14.6275]
[1730387503263,21.50906569,170.94,170.91,14.6275]
[1730387504358,21.50906569,170.95,170.91,14.6275]
[1730387505667,21.50906569,170.95,170.91,20.4785]
[1730387505984,21.50906569,170.98,170.93,21.50906569]
[1730387506188,21.50906569,171.01,170.96,21.50906569]
[1730387506368,3.45790722,171.0,170.99,21.50906569]
[1730387506567,6.389,171.03,170.99,21.50906569]
[1730387506776,6.389,171.03,171.0,21.50906569]
[1730387506982,6.389,171.03,170.98,21.50906569]
[1730387507168,33.74516569,171.03,170.98,21.50906569]
[1730387507363,21.50906569,171.02,170.97,21.50906569]
[1730387507694,6.389,171.03,170.98,21.50906569]
[1730387507985,6.389,171.03,171.0,21.50906569]
[1730387508160,15.3205,171.04,171.0,21.50906569]
[1730387508361,3.46152528,171.03,171.0,21.50906569]
[1730387508563,15.3205,171.04,171.0,21.50906569]
[1730387509989,36.82956569,171.04,171.0,5.8479]
[1730387510172,36.82956569,171.04,170.99,27.35726569]
[1730387510494,15.3205,171.04,171.0,21.50906569]
[1730387510694,6.4886,171.07,170.99,20.4689]
[1730387510695,27.99766569,171.07,171.02,21.50906569]
[1730387510988,27.99766569,171.07,171.03,21.50906569]
[1730387510989,3.46684548,171.06,171.03,21.50906569]
[1730387511173,3.46684548,171.05,171.04,21.50906569]
[1730387511493,3.46684548,171.05,171.03,21.50906569]
[1730387511789,12.3341,171.07,171.03,21.50906569]
[1730387511983,3.46928929,171.06,171.03,21.50906569]
[1730387512391,12.3341,171.07,171.03,21.50906569]
[1730387512392,3.46933858,171.05,171.03,27.35576569]
[1730387512562,6.4886,171.07,171.04,21.50906569]
[1730387512763,3.47162423,171.06,171.04,21.50906569]
[1730387512973,3.47162423,171.05,171.04,21.50906569]
[1730387513174,3.47162423,171.05,171.03,27.35576569]
[1730387513490,3.47162423,171.04,171.03,27.35576569]
[1730387513690,6.4886,171.07,171.03,27.35576569]
[1730387513891,3.47375685,171.06,171.03,27.35576569]
[1730387514098,15.2455,171.09,171.05,21.50906569]
[1730387514284,7.82058609,171.08,171.06,21.50906569]
[1730387514490,7.82058609,171.07,171.06,21.50906569]
[1730387514694,7.82058609,171.07,171.06,13.42575485]
[1730387514989,7.82058609,171.07,171.04,13.42575485]
[1730387515285,7.82058609,171.07,171.03,20.464]
[1730387515286,3.47581604,171.06,171.03,20.464]
[1730387515490,3.47581604,171.05,171.03,20.464]
[1730387515693,3.47581604,171.08,171.03,20.464]
[1730387515883,15.2455,171.09,171.06,13.42575485]
[1730387515884,7.82261663,171.07,171.06,13.42575485]
[1730387516068,7.82261663,171.07,171.05,19.27195485]
[1730387516269,3.4767185,171.06,171.05,19.27195485]
[1730387518500,13.42575485,171.12,171.05,33.88755485]
[1730387518804,13.42575485,171.1,171.05,33.88755485]
[1730387518977,7.82554736,171.09,171.05,33.88755485]
[1730387519174,7.82563266,171.08,171.05,33.88755485]
[1730387519496,13.42575485,171.1,171.05,33.88755485]
[1730387519698,7.82529336,171.09,171.05,33.88755485]
[1730387519996,3.47790865,171.08,171.05,33.88755485]
[1730387520202,19.27045485,171.1,171.05,28.04135485]
[1730387520371,7.82446628,171.09,171.05,28.04135485]
[1730387520572,3.47754057,171.08,171.05,28.04135485]
[1730387520793,19.27045485,171.1,171.05,28.04135485]
[1730387520968,7.82447182,171.09,171.06,13.42575485]
[1730387521172,3.47754303,171.08,171.06,13.42575485]
[1730387521497,5.8447,171.1,171.06,13.42575485]
[1730387521676,4.34649786,171.09,171.06,13.42575485]
[1730387521999,3.47719829,171.08,171.05,20.4618]
[1730387522196,5.8442,171.11,171.07,13.42575485]
[1730387522412,7.82458022,171.1,171.07,13.42575485]
[1730387522693,3.47759121,171.09,171.07,13.42575485]
[1730387522896,19.26995485,171.11,171.06,13.42575485]
[1730387523097,21.24953348,171.1,171.05,33.88755485]
[1730387523305,3.47724586,171.09,171.05,33.88755485]
[1730387523482,13.42575485,171.07,171.02,28.04365485]
[1730387523678,3.47767199,171.06,171.02,33.89085485]
[1730387523997,5.8457,171.07,171.02,33.89085485]
[1730387524199,3.47767254,171.06,171.03,13.42575485]
[1730387524407,13.42575485,171.06,171.01,13.42575485]
[1730387524698,3.47792111,171.05,171.0,13.42575485]
[1730387524903,13.42575485,171.05,171.0,13.42575485]
[1730387525280,13.42575485,171.03,170.99,14.6204]
[1730387525473,13.42575485,171.02,170.96,33.89805485]
[1730387525694,13.42575485,171.0,170.95,13.42575485]
[1730387525881,5.8469,171.03,170.96,13.42575485]
[1730387526089,13.42575485,171.01,170.96,13.42575485]
[1730387526584,19.27265485,171.03,170.98,13.42575485]
[1730387526785,3.47831775,171.02,170.98,13.42575485]
[1730387526996,33.42575485,171.03,170.98,13.42575485]
[1730387527184,13.42575485,171.02,170.97,13.42575485]
[1730387527391,13.42575485,171.01,170.96,13.42575485]
[1730387527787,19.27355485,171.01,170.96,13.42575485]
[1730387527988,19.27355485,171.01,170.96,19.27505485]
[1730387528479,33.42575485,171.03,170.98,13.42575485]
[1730387529599,13.42575485,171.03,170.98,13.42575485]
[1730387530199,13.42575485,171.03,170.98,19.27405485]
[1730387530399,13.42575485,171.03,170.98,5.8483]
[1730387530608,13.42575485,171.01,170.96,33.89795485]
[1730387532187,23.776884,171.02,170.98,13.42575485]
[1730387533204,23.776884,171.02,170.97,19.27465485]
[1730387533396,3.48160425,171.01,170.98,13.42575485]
[1730387533594,23.776884,171.02,170.98,13.42575485]
[1730387533794,3.48160425,171.01,170.97,19.27465485]
[1730387533991,37.20263885,171.02,170.97,19.27465485]
[1730387534191,3.48160812,171.01,170.98,13.42575485]
[1730387534516,37.20263885,171.02,170.97,13.42575485]
[1730387534690,3.4827214,171.01,170.97,13.42575485]
[1730387534888,37.20263885,171.02,170.97,13.42575485]
[1730387535089,3.48272192,171.01,170.97,13.42575485]
[1730387535420,37.20263885,171.02,170.97,13.42575485]
[1730387535605,17.7804953,171.01,170.96,13.42575485]
[1730387535918,3.48389204,171.0,170.96,13.42575485]
[1730387536093,13.42575485,171.01,170.96,13.42575485]
[1730387536301,7.84043426,171.0,170.96,13.42575485]
[1730387536500,19.27335485,171.01,170.96,13.42575485]
[1730387536814,3.48519121,171.0,170.96,19.27495485]
[1730387537011,19.27335485,171.01,170.96,19.27495485]
[1730387537214,7.84339597,171.0,170.96,19.27495485]
[1730387537515,3.48519076,170.99,170.96,19.27495485]
[1730387537712,5.8476,171.01,170.96,19.27495485]
[1730387537913,13.42575485,170.98,170.94,14.6243]
[1730387538119,13.42575485,170.98,170.93,19.27605485]
[1730387538293,13.42575485,170.99,170.94,13.42575485]
[1730387538490,3.48734369,170.98,170.94,13.42575485]
[1730387538692,23.776884,170.98,170.94,13.42575485]
[1730387539194,43.776884,170.99,170.95,13.42575485]
[1730387539396,3.48774308,170.98,170.95,13.42575485]
[1730387539706,43.776884,170.99,170.95,13.42575485]
[1730387539909,43.776884,171.0,170.96,13.42575485]
[1730387540115,3.48769993,170.98,170.95,13.42575485]
[1730387540324,57.20263885,171.0,170.95,19.27535485]
[1730387540697,63.05053885,171.0,170.95,19.27535485]
[1730387540898,7.84734224,170.99,170.95,19.27535485]
[1730387542524,3.48770767,170.98,170.95,19.27535485]
[1730387542700,63.05053885,171.0,170.95,19.27535485]
[1730387542896,7.84597956,170.99,170.95,19.27535485]
[1730387543103,3.48710203,170.98,170.95,20.4737]
[1730387543305,35.41925485,171.04,170.95,20.4737]
[1730387543618,16.9124545,171.03,170.98,13.42575485]
[1730387543928,3.48669965,171.02,170.95,20.4737]
[1730387544115,16.9124545,171.01,170.96,13.42575485]
[1730387544418,5.8476,171.02,170.92,20.4773]
[1730387544419,37.20263885,170.98,170.93,13.42575485]
[1730387545502,43.05133885,170.98,170.93,13.42575485]
[1730387547225,3.48845528,170.97,170.94,13.42575485]
[1730387547429,13.42575485,170.97,170.93,13.42575485]
[1730387547602,3.48894014,170.96,170.93,13.42575485]
[1730387547930,20.0,170.97,170.94,13.42575485]
[1730387548129,3.48877558,170.96,170.93,13.42575485]
[1730387548502,20.0,170.97,170.93,13.42575485]
[1730387548701,3.48897491,170.96,170.93,13.42575485]
[1730387549015,5.8493,170.96,170.92,28.05245485]
[1730387549205,20.0,170.97,170.93,13.42575485]
[1730387549525,3.48940243,170.96,170.93,13.42575485]
[1730387549729,25.849,170.97,170.93,13.42575485]
[1730387550021,16.9149588,170.96,170.92,13.42575485]
[1730387550226,27.26608795,170.95,170.91,13.42575485]
[1730387550522,23.776884,170.95,170.91,13.42575485]
[1730387550821,3.48958489,170.94,170.9,13.42575485]
[1730387551128,37.20263885,170.93,170.88,13.42575485]
[1730387551806,3.48933489,170.92,170.89,13.42575485]
[1730387552130,23.776884,170.93,170.89,13.42575485]
[1730387552355,3.48948346,170.92,170.89,13.42575485]
[1730387552505,23.776884,170.93,170.89,13.42575485]
[1730387552828,3.48834145,170.92,170.89,13.42575485]
[1730387553027,43.776884,170.92,170.88,13.42575485]
[1730387553230,3.48840867,170.91,170.87,14.03623015]
[1730387553430,43.776884,170.92,170.88,13.42575485]
[1730387553837,57.20263885,170.92,170.87,0.6104753]
[1730387554338,57.20263885,170.92,170.87,14.03623015]
[1730387554533,43.776884,170.92,170.87,14.03623015]
[1730387554848,43.776884,170.92,170.88,13.42575485]
[1730387555139,5.851,170.91,170.87,14.03623015]
[1730387555312,20.0,170.93,170.9,13.42575485]
[1730387555512,20.0,170.94,170.92,13.42575485]
[1730387555720,15.8924,170.95,170.92,13.42575485]
[1730387556647,15.8924,170.95,170.93,13.42575485]
[1730387556817,6.5874,170.97,170.94,13.42575485]
[1730387557016,20.9442,170.99,170.95,13.42575485]
[1730387557229,3.48287091,170.98,170.95,13.42575485]
[1730387557439,20.9442,170.99,170.95,13.42575485]
[1730387557744,3.48275085,170.98,170.95,13.42575485]
[1730387557913,20.0,170.98,170.94,13.42575485]
[1730387558113,25.8487,170.98,170.94,13.42575485]
[1730387558330,25.8487,170.98,170.92,14.6267]
[1730387558331,25.8487,170.98,170.95,13.42575485]
[1730387558538,25.8487,170.98,170.94,13.42575485]
[1730387558726,23.48307826,170.97,170.95,13.42575485]
[1730387559052,15.0959,170.99,170.96,13.42575485]
[1730387559337,3.48287984,170.98,170.97,13.42575485]
[1730387559547,15.0959,170.99,170.96,13.42575485]
[1730387560036,20.9617,171.03,170.98,13.42575485]
[1730387560240,3.48288817,171.02,171.0,13.42575485]
[1730387560438,3.48313454,171.01,170.99,13.42575485]
[1730387560631,20.9618,171.03,170.99,13.42575485]
[1730387560833,3.48312915,171.02,170.99,13.42575485]
[1730387561017,3.48312915,171.01,170.98,20.4701]
[1730387561228,11.97,171.05,171.0,13.42575485]
[1730387561428,3.48343081,171.04,171.01,13.42575485]
[1730387561654,3.48343081,171.03,171.0,13.42575485]
[1730387561853,3.48343081,171.02,171.0,13.42575485]
[1730387562034,3.48351859,171.01,171.0,13.42575485]
[1730387562237,25.39575485,171.05,171.0,13.42575485]
[1730387562451,13.42575485,171.04,170.99,13.42575485]
[1730387562652,3.48389735,171.03,170.99,13.42575485]
[1730387563240,3.48389735,171.03,171.0,13.42575485]
[1730387563757,3.48389735,171.03,170.99,13.42575485]
[1730387564134,3.48389735,171.03,171.0,13.42575485]
[1730387564347,3.48389735,171.02,171.0,13.42575485]
[1730387564561,3.48389735,171.02,170.99,13.42575485]
[1730387566535,3.48389735,171.02,171.01,13.42575485]
[1730387567381,3.48389735,171.05,171.01,13.42575485]
[1730387567564,3.48389735,171.04,171.0,13.42575485]
[1730387567736,15.9022,171.07,171.0,13.42575485]
[1730387568056,3.48753839,171.06,171.05,13.42575485]
[1730387568552,9.33353839,171.06,170.98,5.8483]
[1730387568763,9.33353839,171.06,171.0,13.42575485]
[1730387568764,16.91329324,171.05,171.0,13.42575485]
[1730387568961,16.91329324,171.04,170.99,13.42575485]
[1730387569259,3.48753839,171.03,170.99,13.42575485]
[1730387569446,3.48753839,171.02,170.99,13.42575485]
[1730387569638,3.48753839,171.01,170.99,13.42575485]
[1730387569839,19.27265485,171.04,170.99,13.42575485]
[1730387570158,3.49022862,171.03,170.99,13.42575485]
[1730387570340,3.49022862,171.02,170.99,13.42575485]
[1730387570543,3.49022862,171.01,170.98,20.4696]
[1730387570854,5.8462,171.05,171.0,13.42575485]
[1730387571053,20.0,171.04,171.01,13.42575485]
[1730387571255,3.49088152,171.03,171.02,13.42575485]
[1730387571457,3.49088152,171.03,171.01,13.42575485]
[1730387571643,3.49088152,171.02,171.01,13.42575485]
[1730387573853,9.33808152,171.02,170.98,13.42575485]
[1730387574162,16.91663637,171.01,170.96,13.42575485]
[1730387574373,9.33878152,171.0,170.97,13.42575485]
[1730387574661,3.49088152,170.99,170.97,13.42575485]
[1730387574867,3.49073567,170.98,170.97,13.42575485]
[1730387575067,25.8472,171.02,170.97,13.42575485]
[1730387575363,3.49064902,171.01,170.97,13.42575485]
[1730387575683,3.49064902,171.0,170.97,13.42575485]
[1730387575865,3.49064902,170.99,170.97,13.42575485]
[1730387576050,3.49076864,170.98,170.97,13.42575485]
[1730387576958,3.49076864,170.98,170.97,19.27465485]
[1730387577276,5.8474,171.02,170.97,19.27465485]
[1730387577566,3.49087405,171.01,170.97,19.27465485]
[1730387577760,3.49087405,171.0,170.97,19.27465485]
[1730387577941,3.49087405,170.99,170.97,19.27465485]
[1730387578141,25.8472,171.02,170.97,19.27465485]
[1730387578368,3.48975537,171.01,170.97,19.27465485]
[1730387578673,3.48975537,171.0,170.98,13.42575485]
[1730387578847,3.48975537,170.99,170.98,13.42575485]
[1730387579044,3.48975537,170.99,170.97,13.42575485]
[1730387579276,39.27295485,171.02,170.97,13.42575485]
[1730387579478,16.91478006,171.01,170.96,13.42575485]
[1730387579769,16.91478006,171.0,170.95,33.89895485]
[1730387579945,3.48902521,170.99,170.95,33.89895485]
[1730387580147,3.48902521,170.98,170.96,13.42575485]
[1730387580367,3.48902521,170.99,170.96,13.42575485]
[1730387580573,3.48959906,170.98,170.96,13.42575485]
[1730387580872,5.8481,171.0,170.96,13.42575485]
[1730387581056,3.48964336,170.99,170.96,13.42575485]
[1730387581257,5.8489,170.97,170.94,13.42575485]
[1730387581456,5.8489,170.97,170.92,13.42575485]
[1730387581457,3.48918433,170.96,170.92,13.42575485]
[1730387581654,19.27465485,170.97,170.92,13.42575485]
[1730387581867,3.48924091,170.96,170.92,13.42575485]
[1730387582070,19.27465485,170.97,170.9,20.4789]
[1730387582071,19.60065485,171.0,170.95,13.42575485]
[1730387582283,36.3796,171.02,170.98,13.42575485]
[1730387582570,3.48912388,171.01,170.98,13.42575485]
[1730387582749,3.48912388,171.0,170.98,13.42575485]
[1730387582946,3.48912388,170.99,170.98,13.42575485]
[1730387583574,3.48912388,170.99,170.97,13.42575485]
[1730387583773,5.848,171.0,170.97,13.42575485]
[1730387583774,3.48912388,170.98,170.97,13.42575485]
[1730387585763,49.80535485,171.02,170.97,13.42575485]
[1730387585962,3.48694158,170.98,170.97,13.42575485]
[1730387589243,36.3796,171.02,170.97,13.42575485]
[1730387589244,42.2271,171.02,170.97,19.27465485]
[1730387589447,42.2271,171.02,170.99,13.42575485]
[1730387589670,3.48842884,171.01,170.99,13.42575485]
[1730387589867,3.48842884,171.0,170.99,13.42575485]
[1730387590978,3.48842884,171.0,170.99,19.27395485]
[1730387591273,21.3368,171.06,170.99,33.89465485]
[1730387591573,3.48924553,171.05,171.02,13.42575485]
[1730387591777,21.3368,171.06,171.02,13.42575485]
[1730387591962,34.76255485,171.06,171.01,13.42575485]
[1730387592164,13.42575485,171.03,170.98,13.42575485]
[1730387592379,13.42575485,171.02,170.97,13.42575485]
[1730387593053,5.8476,171.01,170.97,13.42575485]
[1730387593253,13.42575485,170.99,170.94,13.42575485]
[1730387593476,13.42575485,170.98,170.93,28.05135485]
[1730387593661,13.42575485,170.98,170.93,13.42575485]
[1730387593864,13.42575485,170.97,170.92,13.42575485]
[1730387594084,13.42575485,170.95,170.91,13.42575485]
[1730387594580,13.42575485,170.96,170.91,13.42575485]
[1730387594754,37.20263885,170.96,170.91,13.42575485]
[1730387595276,5.8496,170.95,170.91,13.42575485]
[1730387595481,19.27535485,170.95,170.9,13.42575485]
[1730387596078,5.8496,170.95,170.91,13.42575485]
[1730387596455,5.8496,170.95,170.92,13.42575485]
[1730387596767,29.99825485,170.97,170.94,13.42575485]
[1730387596768,16.5725,170.97,170.94,13.42575485]
[1730387596969,15.3656,171.02,170.96,13.42575485]
[1730387597175,21.2129,171.02,170.98,13.42575485]
[1730387597884,21.2129,171.02,171.0,13.42575485]
[1730387597885,15.3656,171.02,171.0,13.42575485]
[1730387598089,21.2129,171.02,170.98,13.42575485]
[1730387598378,13.42575485,171.01,170.96,13.42575485]
[1730387598556,34.63865485,171.02,170.97,13.42575485]
[1730387599180,13.42575485,170.99,170.94,13.42575485]
[1730387599402,13.42575485,170.98,170.93,13.42575485]
[1730387600158,13.42575485,170.97,170.92,33.90305485]
[1730387600379,13.42575485,170.97,170.92,28.05245485]
[1730387600586,5.8493,170.96,170.93,13.42575485]
[1730387600769,5.8489,170.97,170.93,13.42575485]
[1730387602169,13.42575485,171.0,170.95,13.42575485]
[1730387602471,20.0,170.99,170.96,13.42575485]
[1730387603161,15.3656,171.02,170.98,13.42575485]
[1730387603372,12.4318,171.05,171.01,13.42575485]
[1730387603572,4.37092019,171.04,171.0,13.42575485]
[1730387603776,25.85755485,171.05,171.0,13.42575485]
[1730387604069,17.79680227,171.04,170.98,13.42575485]
[1730387604279,4.37104742,171.03,170.99,13.42575485]
[1730387604581,4.37104742,171.02,170.99,13.42575485]
[1730387604779,4.37104742,171.01,171.0,13.42575485]
[1730387606380,4.37104742,171.01,171.0,19.27365485]
[1730387610290,4.37046796,171.01,171.0,33.89345485]
[1730387611671,4.37046796,171.01,171.0,47.3192097]
[1730387612078,11.8997,171.09,171.05,13.42575485]
[1730387612687,25.32545485,171.09,171.04,13.42575485]
[1730387613196,20.0,171.06,171.02,13.42575485]
[1730387613380,20.0,171.06,171.01,13.42575485]
[1730387613584,33.42575485,171.06,171.01,13.42575485]
[1730387613892,5.8465,171.04,171.0,13.42575485]
[1730387614473,25.8455,171.07,171.03,13.42575485]
[1730387614971,25.8455,171.07,171.05,13.42575485]
[1730387615568,20.0,171.08,171.05,13.42575485]
[1730387615872,5.845,171.09,171.07,13.42575485]
[1730387616066,5.845,171.09,171.05,13.42575485]
[1730387617094,29.66505485,171.11,171.05,13.42575485]
[1730387617095,25.8445,171.1,171.05,13.42575485]
[1730387617702,25.8445,171.1,171.06,13.42575485]
[1730387618301,25.8445,171.1,171.07,13.42575485]
[1730387618595,16.2393,171.11,171.09,13.42575485]
[1730387618791,6.5847,171.13,171.1,13.42575485]
[1730387619010,5.8439,171.12,171.1,21.47304452]
[1730387619185,5.8439,171.12,171.09,21.47304452]
[1730387619500,5.8439,171.12,171.1,21.47304452]
[1730387620703,5.8439,171.12,171.09,21.47304452]
[1730387621078,5.8439,171.12,171.1,21.47304452]
[1730387621810,5.8439,171.12,171.09,21.47304452]
[1730387622175,5.8439,171.12,171.11,21.47304452]